[Event "1000 GM Labor Day Super Swiss 2024"]
[Site "San Jose"]
[Date "2024.09.02"]
[Round "5.22"]
[White "Ubaldo Suarez, Maria Gisela"]
[Black "Karthi, Jashith"]
[Result "0-1"]
[Annotator "TA"]
[ECO "D26"]
[WhiteElo "1958"]
[BlackElo "2066"]
[PlyCount "81"]
[EventDate "2024.08.30"]
[EventType "swiss"]
[EventCountry "USA"]
[SourceTitle "playchess.com"]
[Source "ChessBase"]
[SourceQuality "1"]
[TimeControl "5400+30"]

{[%evp 14,81,-5,-5,18,-12,-18,-41,-35,-40,-34,-64,-76,-73,-20,-24,-16,-31,-8,-20,-5,-35,-12,-22,0,0,0,2,0,17,29,0,0,0,0,-37,-50,-39,-20,-56,-57,-27,-17,-13,-25,-25,0,-13,0,0,-2,-13,-2,-102,-101,-96,-101,-181,-172,-185,-173,-183,-168,-229,-229,-214,-208,-670,-670,-670]} 1. d4 {[%emt 0:04:34]} d5 {[%emt 0:00:14]} 2. Nf3 {[%emt 0:00:33]} Nf6 {[%emt 0:00:10]} 3. c4 {[%emt 0:00:09]} e6 {[%emt 0:00:04]} 4. Nc3 {[%emt 0:00:06]} dxc4 {[%emt 0:00:15]} 5. e3 {[%emt 0:00:09]} a6 {[%emt 0:00:03]} 6. Bxc4 {[%emt 0:00:28]} b5 {[%emt 0:00:14]} 7. Bd3 {[%emt 0:02:50]} Bb7 {[%emt 0:00:13]} 8. O-O {[%emt 0:00:04]} Nbd7 {[%emt 0:00:09]} 9. a3 {[%emt 0:04:14]} c5 {[%emt 0:00:17]} 10. Re1 {[%emt 0:01:55]} Be7 {[%emt 0:00:33] Black is slightly better.} 11. Bc2 {[%emt 0:15:40]} O-O {[%emt 0:03:49]} 12. Ne5 {[%emt 0:03:14]} Nxe5 {[%emt 0:05:53]} 13. dxe5 {[%emt 0:00:08]} Qxd1 {[%emt 0:00:27]} (13... Nd7 $17 {[%cal Oc5c4]} 14. f4 c4) 14. Rxd1 $11 {[%emt 0:00:31]} Nd5 {[%emt 0:00:23]} 15. Ne4 {[%emt 0:05:26]} f5 {[%emt 0:05:58]} 16. exf6 {[%emt 0:05:06]} Nxf6 {[%emt 0:00:48][%cal Bd5f6,Bf6g4,Bg4e5,Be5c4][%mdl 32]} 17. Ng3 {[%emt 0:15:49]} Rad8 {[%emt 0:02:55]} 18. Bd2 {[%emt 0:00:15]} Ng4 {[%emt 0:02:47]} 19. f3 {[%emt 0:00:52]} Ne5 {[%emt 0:02:38][%cal Ob7f3]} 20. Bc3 {[%emt 0:02:57]} Nc4 {[%emt 0:00:36]} 21. Nf1 {[%emt 0:01:01]} Rd5 {[%emt 0:08:29]} 22. e4 {[%emt 0:03:42]} Rxd1 {[%emt 0:02:31]} 23. Rxd1 {[%emt 0:00:15] [#] Strongly threatening Rd7.} b4 {[%emt 0:00:31]} 24. axb4 {[%emt 0:08:06]} cxb4 {[%emt 0:00:10]} 25. Be1 {[%emt 0:01:27]} a5 {[%emt 0:03:56]} 26. b3 {[%emt 0:04:30]} Na3 {[%emt 0:00:30]} 27. Bd3 {[%emt 0:00:22]} Rd8 $36 {[%emt 0:00:51][%mdl 2048] And now ...Ba6 would win. Black fights for an advantage.} 28. Be2 {[%emt 0:01:06]} Rxd1 {[%emt 0:00:23]} 29. Bxd1 {[%emt 0:00:00]} Nb5 {[%emt 0:02:25]} 30. Be2 {[%emt 0:01:29]} Nc3 {[%emt 0:03:54]} 31. Bc4 {[%emt 0:00:09]} Kf7 {[%emt 0:00:37]} 32. Bf2 {[%emt 0:00:14]} Bc6 {[%emt 0:00:52]} 33. Ne3 {[%emt 0:02:59]} (33. Bb6 $11) 33... a4 $17 {[%emt 0:01:31]} 34. bxa4 {[%emt 0:04:06]} Bxa4 {[%emt 0:00:13] ...b3 is the strong threat.} 35. Bd3 {[%emt 0:01:29]} (35. Ng4 $17 {keeps fighting.}) 35... b3 {[%emt 0:02:07]} 36. Nc4 {[%emt 0:00:26] [#]} Bb5 $1 {[%emt 0:01:48]} 37. Ne5+ {[%emt 0:05:58]} Ke8 {[%emt 0:04:08]} 38. Bxb5+ {[%emt 0:00:36]} (38. Bd4 $142 Bxd3 39. Bxc3) 38... Nxb5 $19 {[%emt 0:00:08]} 39. Nc4 {[%emt 0:00:41]} Na3 {[%emt 0:02:14]} 40. Nxa3 {[%emt 0:03:10]} (40. Nd2 b2 41. Bd4) 40... Bxa3 {[%emt 0:00:06]} 41. Bd4 {[%emt 0:00:05] Weighted Error Value: White=0.33/Black=0.09 (flawless) .  Mistake:       	White=4     	Black=1      Inaccurate:     	White=6     	---        OK:         	White=11    	Black=12     Best:        	White=1     	Black=1      Strong:       	---       	Black=1} 0-1